bitfinex-derivatives/quotes_ETHF0:USTF0_20241004
["timestamp","ask_amount","ask_price","bid_price","bid_amount"]
[1728000370668,0.42509,2352.6,2352.5,0.42509]
[1728000371463,4.7978,2352.8,2352.2,0.3911]
[1728000371662,0.42512,2352.5,2352.4,0.42511]
[1728000371863,3.2078,2352.5,2352.4,0.42511]
[1728000372565,0.42507,2352.7,2352.6,0.42508]
[1728000372771,3.2078,2353.1,2352.3,4.09]
[1728000373075,3.2078,2353.1,2353.0,0.42501]
[1728000373269,0.42495,2353.3,2353.2,0.42497]
[1728000373575,0.42498,2353.2,2353.1,0.42498]
[1728000373963,3.63278,2353.2,2353.1,0.42498]
[1728000374280,3.63278,2353.2,2352.5,4.27054]
[1728000374281,8.51985,2353.2,2352.5,4.27054]
[1728000374572,0.42501,2353.0,2352.9,0.42501]
[1728000375571,3.63278,2353.2,2353.1,0.42499]
[1728000375883,0.42501,2353.0,2352.7,1.06265]
[1728000376172,3.2078,2353.2,2352.7,1.06265]
[1728000376375,3.2078,2353.2,2353.0,0.425]
[1728000376376,0.425,2353.1,2353.0,0.425]
[1728000376679,3.2078,2353.2,2352.7,1.06265]
[1728000376875,3.63278,2353.2,2353.1,0.42499]
[1728000378182,7.4574,2353.2,2352.4,1.0183]
[1728000378381,0.42502,2353.0,2352.8,0.42503]
[1728000378675,3.2078,2352.9,2352.4,0.8053]
[1728000378877,0.4153,2352.8,2352.6,0.42507]
[1728000379175,0.42509,2352.6,2352.2,0.42515]
[1728000379475,3.2078,2352.6,2352.5,0.4251]
[1728000379682,7.88328,2352.6,2352.5,0.4251]
[1728000379879,0.4251,2352.5,2352.4,0.4251]
[1728000380386,3.63289,2352.6,2352.5,0.4251]
[1728000380580,3.2078,2352.6,2352.5,0.4251]
[1728000380776,0.4153,2352.8,2352.7,0.42506]
[1728000380980,3.2078,2353.0,2352.6,1.06269]
[1728000381983,3.2078,2353.0,2352.9,0.42502]
[1728000382370,1.9775,2353.2,2353.1,0.42499]
[1728000382571,0.42503,2352.9,2352.8,0.42504]
[1728000382777,3.2078,2352.9,2352.2,1.46386]
[1728000382977,3.2078,2352.9,2352.5,0.42508]
[1728000382978,0.42505,2352.8,2352.5,0.42508]
[1728000383178,3.2078,2352.9,2352.2,0.401]
[1728000383495,3.2078,2352.6,2352.2,0.401]
[1728000383781,0.4264,2352.7,2352.3,1.06284]
[1728000383976,0.4264,2352.7,2352.5,0.42508]
[1728000384171,0.4264,2352.7,2352.6,0.42508]
[1728000384888,0.42509,2352.6,2352.3,0.42512]
[1728000385086,0.42513,2352.4,2352.1,0.42516]
[1728000385382,3.63293,2352.3,2352.1,0.42516]
[1728000385581,3.2078,2352.3,2352.1,0.42516]
[1728000385986,3.2078,2352.3,2351.8,1.88163]
[1728000385987,3.2078,2352.3,2351.8,0.8186]
[1728000386282,3.2078,2352.3,2352.2,0.42515]
[1728000386885,0.42516,2352.2,2352.0,0.42518]
[1728000387081,0.4242,2352.2,2352.1,0.42517]
[1728000387280,0.42519,2352.0,2351.8,1.24381]
[1728000387487,0.42519,2352.0,2351.8,0.83141]
[1728000387784,0.42519,2352.0,2351.9,0.4252]
[1728000387785,3.2078,2352.0,2351.9,0.4252]
[1728000390182,3.2078,2352.0,2351.8,0.4062]
[1728000390183,1.559,2352.2,2352.1,0.42515]
[1728000390390,1.912908,2352.2,2352.1,0.42515]
[1728000391080,1.912908,2352.2,2351.8,0.4062]
[1728000391282,3.561708,2352.1,2352.0,0.42517]
[1728000393498,3.959608,2352.1,2352.0,0.42517]
[1728000393790,3.959608,2352.1,2351.9,0.42519]
[1728000393995,0.35434007,2352.0,2351.9,0.42519]
[1728000396785,3.6057,2352.1,2351.8,0.4062]
[1728000396988,3.6057,2352.1,2352.0,0.42519]
[1728000397197,3.95993388,2352.1,2351.9,0.42519]
[1728000397393,0.35423388,2352.0,2351.9,0.42519]
[1728000397792,3.2078,2352.1,2352.0,0.42519]
[1728000397994,3.56196383,2352.1,2352.0,0.42519]
[1728000398294,13.81396383,2352.1,2352.0,0.42519]
[1728000398504,1.06297,2352.0,2351.4,4.148]
[1728000398687,3.2078,2351.5,2351.4,0.42529]
[1728000400492,3.2078,2351.8,2351.2,1.0633]
[1728000400701,3.2078,2351.8,2351.4,1.06324]
[1728000400884,3.2078,2351.8,2351.7,0.42524]
[1728000400885,4.7668,2351.8,2351.7,0.42524]
[1728000401091,5.12089745,2351.8,2351.7,0.42524]
[1728000401995,3.56189745,2351.8,2351.7,0.42524]
[1728000402195,4.7668,2352.1,2352.0,0.42519]
[1728000402402,3.56176743,2352.1,2352.0,0.42519]
[1728000402895,4.7668,2352.4,2352.3,0.42513]
[1728000403091,5.12072154,2352.4,2352.3,0.42513]
[1728000403494,3.56172154,2352.4,2352.3,0.42513]
[1728000403694,0.35392154,2352.4,2352.3,0.42513]
[1728000403897,7.2978,2352.7,2352.1,0.8319]
[1728000404092,3.2078,2352.4,2352.1,0.8319]
[1728000404293,3.2078,2352.4,2352.2,0.42513]
[1728000404502,3.63293,2352.4,2352.1,1.25706]
[1728000405198,0.42518,2352.1,2351.6,0.213]
[1728000405399,3.2078,2352.0,2351.6,0.422]
[1728000405603,3.2078,2352.0,2351.5,0.84927]
[1728000405604,3.63304,2351.7,2351.5,0.42527]
[1728000405902,3.2078,2351.7,2351.6,0.42526]
[1728000408306,3.2078,2351.7,2351.4,4.57328]
[1728000408307,7.81375358,2351.7,2351.4,4.57328]
[1728000408510,3.63306,2351.7,2351.4,4.148]
[1728000408807,3.63306,2351.7,2351.5,0.42528]
[1728000409204,4.2528,2351.6,2351.5,0.42528]
[1728000410902,4.2528,2351.6,2351.4,0.42528]
[1728000411105,3.2078,2351.7,2351.4,0.42528]
[1728000411302,0.35406435,2351.6,2351.4,0.42528]
[1728000411506,3.2078,2351.7,2351.4,0.42528]
[1728000411710,0.35406224,2351.6,2351.4,0.42528]
[1728000411904,3.2078,2351.7,2351.4,0.42528]
[1728000412206,0.35405955,2351.6,2351.4,0.42528]
[1728000412402,4.09,2351.8,2351.4,0.42528]
[1728000412603,3.2078,2351.6,2351.4,0.42528]
[1728000413304,0.35433806,2351.5,2351.4,0.42528]
[1728000413498,3.2078,2351.6,2351.4,0.42528]
[1728000416007,3.2078,2351.6,2351.5,0.42528]
[1728000416310,7.81493364,2351.6,2351.5,0.42528]
[1728000416514,7.81493364,2351.6,2351.3,0.4059]
[1728000416713,3.2078,2351.6,2351.4,0.42528]
[1728000419216,0.35438013,2351.5,2351.4,0.42528]
[1728000419417,3.2078,2351.6,2351.4,0.42528]
[1728000419612,0.3543817,2351.5,2351.4,0.42528]
[1728000419810,3.2078,2351.6,2351.4,0.42528]
[1728000420014,0.35438128,2351.5,2351.4,0.42528]
[1728000420419,6.51247128,2351.5,2351.0,0.42536]
[1728000420717,6.51247128,2351.5,2350.9,4.361]
[1728000420718,3.2078,2351.2,2350.9,0.81518]
[1728000420922,0.35454978,2351.1,2350.9,0.81518]
[1728000421212,3.2078,2351.2,2350.9,0.3898]
[1728000421213,3.63315,2351.2,2350.9,0.3898]
[1728000421411,0.77997404,2351.1,2350.7,5.77146348]
[1728000421613,3.2078,2350.9,2350.7,5.34605348]
[1728000421810,3.2078,2350.9,2350.8,0.4254]
[1728000422012,3.56237984,2350.9,2350.8,0.4254]
[1728000422415,5.04237984,2350.9,2350.6,0.83273]
[1728000422608,0.35457984,2350.8,2350.3,0.7761]
[1728000422816,3.2078,2350.5,2350.3,0.7957]
[1728000423222,3.63326,2350.5,2350.3,0.4073]
[1728000423523,8.69896933,2350.4,2349.7,0.63859]
[1728000423708,3.2078,2349.8,2349.7,0.4073]
[1728000424706,3.2078,2349.8,2349.7,0.8329]
[1728000425516,3.2078,2349.8,2349.7,0.4073]
[1728000427215,3.2078,2349.8,2349.7,0.8329]
[1728000427517,1.481,2350.0,2349.8,0.42558]
[1728000427921,1.481,2350.0,2349.7,0.4073]
[1728000428421,1.481,2350.0,2349.7,0.8329]
[1728000428614,4.2552,2349.9,2349.5,0.42563]
[1728000428823,7.2978,2349.8,2349.4,0.42565]
[1728000429025,7.2978,2349.8,2349.5,0.42563]
[1728000429223,7.2978,2349.8,2349.4,0.42565]
[1728000429816,7.2978,2349.8,2349.3,0.4058]
[1728000430013,7.2978,2349.8,2349.5,0.42563]
[1728000430215,0.3543906,2349.7,2349.6,0.42562]
[1728000430415,4.256,2349.7,2349.6,0.42562]
[1728000430620,3.2078,2349.8,2349.6,0.42561]
[1728000430917,3.2078,2349.8,2349.7,0.4256]
[1728000431515,3.2078,2349.8,2349.3,0.4058]
[1728000431812,3.2078,2349.8,2349.7,0.4256]
[1728000432213,3.2078,2349.8,2349.3,0.4058]
[1728000432422,3.2078,2349.8,2349.6,0.42561]
[1728000432917,3.2078,2349.8,2349.7,0.4256]
[1728000434719,1.481,2350.0,2349.7,0.4256]
[1728000434926,3.2078,2349.9,2349.7,0.4256]
[1728000435317,1.481,2350.0,2349.7,0.4256]
[1728000435621,3.2078,2349.9,2349.7,0.4256]
[1728000437519,6.5278,2349.9,2349.7,0.4256]
[1728000438121,1.481,2349.8,2349.7,0.4256]
[1728000438325,1.481,2349.8,2349.3,0.4058]
[1728000438530,3.32,2349.5,2349.3,0.4058]
[1728000438916,3.32,2349.5,2349.4,0.42566]
[1728000439319,3.32,2349.5,2349.3,0.83146]
[1728000439519,3.2078,2349.6,2349.3,0.83146]
[1728000439823,0.98436,2349.5,2349.4,0.42566]
[1728000440025,3.2078,2349.6,2349.5,0.42564]
[1728000443128,3.2078,2349.6,2349.3,0.4058]
[1728000443324,7.2978,2349.6,2349.3,0.4058]
[1728000443536,7.7086,2349.6,2349.4,0.42566]
[1728000443731,0.98436,2349.5,2349.3,0.4058]
[1728000444731,0.98436,2349.5,2349.4,0.42566]
[1728000444924,0.98436,2349.5,2349.3,0.83146]
[1728000445123,5.66681,2349.5,2349.1,0.4257]
[1728000445323,0.4236,2349.4,2349.2,0.42569]
[1728000446132,0.84926,2349.4,2349.1,0.4257]
[1728000446327,0.4236,2349.4,2349.1,0.4257]
[1728000446527,0.4236,2349.4,2349.0,0.8342]
[1728000446933,0.4236,2349.4,2349.2,0.42568]
[1728000448327,0.4236,2349.4,2349.0,0.8342]
[1728000448627,0.4236,2349.4,2349.1,0.42569]
[1728000448834,0.4236,2349.4,2349.2,0.42569]
[1728000449036,0.4236,2349.4,2349.0,0.8342]
[1728000449231,0.4236,2349.4,2349.2,0.42568]
[1728000450237,3.63342,2349.6,2349.0,0.8342]
[1728000450238,3.2078,2349.6,2349.0,0.8342]
[1728000450430,3.2078,2349.6,2349.5,0.42564]
[1728000450829,7.88942,2349.6,2349.2,0.42568]
[1728000451036,0.401,2349.5,2349.2,0.42568]
[1728000451941,1.41,2349.5,2349.0,0.8342]
[1728000452137,1.41,2349.5,2349.4,0.42566]
[1728000453040,3.2078,2349.6,2349.5,0.42564]
[1728000453239,3.2078,2349.6,2349.4,0.42565]
[1728000454537,3.2078,2349.6,2349.5,0.42564]
[1728000455729,3.2078,2349.6,2349.0,4.042]
[1728000455938,4.51565,2349.5,2349.1,0.42571]
[1728000456428,0.3986,2349.4,2349.1,0.42571]
[1728000457441,3.2078,2349.3,2349.0,0.8342]
[1728000457640,7.2978,2349.3,2349.0,0.4253]
[1728000457846,0.8327,2349.2,2349.0,0.4253]
[1728000458345,0.8327,2349.2,2348.9,0.42575]
[1728000458836,0.407,2349.2,2349.0,0.42573]
[1728000459040,1.41,2349.1,2349.0,0.42573]
[1728000459540,0.42573,2349.0,2348.8,0.42576]
[1728000459735,4.73,2349.1,2348.2,4.148]
[1728000459736,6.5278,2348.9,2348.2,4.148]
[1728000459935,3.32,2348.5,2348.4,0.42583]
[1728000461453,3.32,2348.7,2348.6,0.4258]
[1728000462151,3.32,2348.7,2348.3,0.4062]
[1728000462338,3.32,2348.4,2348.3,0.4062]
[1728000462539,3.32,2348.4,2348.3,0.83206]
[1728000464446,4.73,2348.6,2348.5,0.42582]
[1728000464848,3.32,2348.8,2348.3,0.4062]
[1728000465166,0.98422,2348.7,2348.6,0.4258]
[1728000465344,1.3694997,2348.7,2348.6,0.4258]
[1728000465947,0.3852797,2348.7,2348.6,4.6834]
[1728000466144,3.2078,2348.9,2348.8,0.42577]
[1728000466345,3.59304807,2348.9,2348.8,0.42577]
[1728000466850,3.59304807,2348.9,2348.8,0.81417]
[1728000466851,0.38524807,2348.9,2348.8,0.81417]
[1728000467053,3.32,2348.9,2348.8,0.3884]
[1728000467254,0.3971,2349.3,2348.9,0.42575]
[1728000467255,3.32,2349.0,2348.9,0.42575]
[1728000467549,3.69368308,2349.0,2348.9,0.42575]
[1728000468455,0.37368308,2349.0,2348.9,4.68335]
[1728000468657,0.37368308,2349.0,2348.9,0.42575]
[1728000468658,3.69368308,2349.0,2348.9,0.42575]
[1728000468951,3.69368308,2349.0,2348.8,0.81415]
[1728000469153,0.37368308,2348.9,2348.8,0.81415]
[1728000469755,0.37368308,2348.9,2348.8,5.07175]
[1728000470251,0.3877,2349.5,2348.8,10.646]
[1728000470553,3.32,2349.6,2349.3,0.42568]
[1728000470554,0.37411127,2349.4,2349.3,0.42568]
[1728000471452,3.69411127,2349.4,2349.3,0.42568]
[1728000471853,3.69411127,2349.4,2349.3,0.84268]
[1728000474064,3.32,2349.4,2349.3,0.84268]
[1728000474360,3.69417181,2349.4,2349.3,0.84268]
[1728000474657,17.15877181,2349.4,2348.6,1.8774504]
[1728000474852,0.4258,2348.6,2348.3,0.213]
[1728000475050,0.4258,2348.6,2348.2,1.25227]
[1728000475051,3.32,2348.4,2348.2,1.25227]
[1728000475255,1.04111948,2348.3,2348.2,1.25227]
[1728000476264,0.37417181,2348.3,2348.2,1.25227]
[1728000476663,0.37417181,2348.3,2348.2,4.46007]
[1728000476860,4.66,2348.6,2348.4,0.42584]
[1728000477066,1.34977332,2348.5,2348.4,0.42584]
[1728000477358,5.08581,2348.6,2348.2,4.46006]
[1728000477561,1.08322987,2348.5,2348.2,4.46006]
[1728000477752,0.26627806,2348.5,2348.2,4.0342]
[1728000477957,1.08325027,2348.4,2348.3,0.42586]
[1728000480258,1.08325027,2348.4,2348.2,1.25227]
[1728000480466,0.41663472,2348.3,2348.2,1.25227]
[1728000480762,8.296,2348.6,2348.4,0.42583]
[1728000480962,0.68283856,2348.5,2348.4,0.42583]
[1728000481272,1.34933385,2348.5,2348.3,0.42585]
[1728000481566,1.0830395,2348.4,2348.3,0.42585]
[1728000482362,0.52185365,2348.4,2348.3,0.42585]
[1728000482559,3.4253,2348.4,2348.2,0.3974]
[1728000482766,1.50855693,2348.3,2348.1,0.42588]
[1728000482964,3.73655365,2348.2,2348.1,0.42588]
[1728000483166,4.40276238,2348.2,2348.1,0.42588]
[1728000483362,4.40276238,2348.2,2347.9,0.8574]
[1728000483568,0.41655365,2348.1,2348.0,0.42591]
[1728000484774,1.0826357,2348.1,2348.0,0.42591]
[1728000485978,11.60818711,2348.1,2347.5,3.2078]
[1728000486163,6.5278,2347.6,2347.3,0.42603]
[1728000486370,3.32,2347.4,2347.3,0.42603]
[1728000486576,5.32675021,2347.4,2347.3,0.42603]
[1728000486775,5.07709388,2347.4,2347.3,0.42603]
[1728000487172,5.07681277,2347.4,2347.3,0.42603]
[1728000487674,5.07681277,2347.4,2347.2,0.42605]
[1728000487875,5.07681277,2347.4,2347.1,3.9995]
[1728000487876,4.661,2347.4,2347.1,3.9995]
[1728000488079,4.661,2347.4,2347.3,0.42604]
[1728000489078,5.07637,2347.4,2347.3,0.42604]
[1728000489278,4.661,2347.4,2347.3,0.42604]
[1728000490578,4.661,2347.4,2347.2,0.42604]
[1728000490972,4.661,2347.4,2347.3,0.42604]
[1728000492077,3.32,2347.4,2347.3,0.42604]
[1728000492380,5.0824,2347.5,2347.4,0.42602]
[1728000493281,5.0824,2347.5,2347.1,0.7917]
[1728000493479,5.0824,2347.5,2347.3,0.42603]
[1728000493870,5.0824,2347.5,2347.1,0.7917]
[1728000494072,5.0824,2347.5,2347.3,0.42602]
[1728000494274,5.0824,2347.5,2347.4,0.42602]
[1728000494674,5.0824,2347.5,2347.3,0.42602]
[1728000495384,3.7414,2347.5,2347.4,0.42602]
[1728000495584,5.0824,2347.5,2347.3,0.42603]
[1728000496482,3.7414,2347.5,2347.1,0.7917]
[1728000496675,1.299,2347.4,2347.3,0.42604]
[1728000497084,1.4044,2347.4,2347.3,0.42604]
[1728000498884,0.1054,2347.4,2347.3,0.42604]
[1728000500380,0.1054,2347.4,2347.3,3.63384]
[1728000500581,1e-05,2347.4,2347.3,7.89384]
[1728000500784,4.619,2347.9,2347.8,0.42595]
[1728000501381,4.619,2347.9,2347.3,0.3925]
[1728000501580,3.32,2347.7,2347.6,0.42597]
[1728000502584,3.32,2347.7,2347.4,0.42602]
[1728000502889,3.32,2347.7,2347.3,0.42603]
[1728000502890,3.32,2347.5,2347.3,0.42603]
[1728000503180,3.32,2347.4,2347.3,0.42603]
[1728000504189,3.32,2347.5,2347.2,3.2078]
[1728000504391,3.32,2347.7,2347.6,0.42598]
[1728000505081,3.2078,2347.9,2347.2,3.2078]
[1728000505392,10.71546254,2349.0,2347.1,0.7917]
[1728000505393,3.2078,2348.7,2347.9,1.06481]
[1728000505689,3.32,2348.8,2348.5,0.42581]
[1728000505879,3.32,2349.0,2348.4,3.2078]
[1728000506074,3.32,2348.8,2348.7,0.42577]
[1728000506280,3.32,2348.8,2348.5,0.4164]
[1728000506281,3.32,2348.8,2348.5,0.84221]
[1728000506488,3.32,2348.6,2348.5,0.84222]
[1728000509780,3.32,2348.6,2348.5,0.42582]
[1728000511600,3.7402,2348.6,2348.5,0.42582]
[1728000512695,14.41265215,2348.6,2348.2,0.42587]
[1728000512909,3.74586,2348.3,2347.9,0.42592]
[1728000513088,3.2078,2348.4,2348.0,0.4259]
[1728000513089,3.32,2348.1,2348.0,0.4259]
[1728000513393,4.619,2348.1,2348.0,0.4259]
[1728000513596,8.8782,2348.1,2348.0,0.4259]
[1728000515000,1.299,2348.1,2348.0,0.4259]
[1728000515199,7.8268,2348.4,2348.3,0.42586]
[1728000515394,4.619,2348.4,2348.3,0.42586]
[1728000515695,1.299,2348.4,2348.3,0.42586]
[1728000515901,4.5068,2348.7,2348.2,3.32]
[1728000516195,4.5068,2348.7,2348.6,0.4258]
[1728000516389,4.92195548,2348.7,2348.6,0.4258]
[1728000516596,4.92195683,2348.7,2348.6,0.4258]
[1728000516899,8.7644,2348.7,2348.2,0.4]
[1728000517101,8.24197154,2348.7,2348.6,0.4258]
[1728000517300,7.8268,2348.7,2348.4,0.42582]
[1728000517601,8.24198672,2348.7,2348.6,0.4258]
[1728000517798,8.24198672,2348.7,2348.1,0.8087]
[1728000517799,12.91490205,2348.7,2348.1,0.8087]
[1728000518096,0.41531533,2348.6,2348.5,0.42582]
[1728000519597,0.41531533,2348.6,2348.1,0.8087]
[1728000519898,0.41531533,2348.6,2348.4,0.42583]
[1728000520092,0.41531533,2348.6,2348.1,0.8087]
[1728000520298,8.24198672,2348.7,2348.5,0.42582]
[1728000520504,1.08122745,2348.6,2348.4,0.42583]
[1728000520688,0.41585671,2348.5,2348.4,0.42583]
[1728000520891,3.73585671,2348.5,2348.3,0.42585]
[1728000521091,0.41585671,2348.4,2348.3,0.42585]
[1728000523200,8.54738228,2348.4,2347.7,3.2078]
[1728000523504,8.54738228,2348.4,2348.0,0.4259]
[1728000523505,3.32,2348.2,2348.0,0.4259]
[1728000523799,1.71483687,2348.1,2348.0,0.42591]
[1728000524809,2.38012933,2348.1,2348.0,0.42591]
[1728000525107,15.84712933,2348.1,2347.2,5.2576336]
[1728000525295,3.32,2347.5,2347.2,0.4156]
[1728000525499,4.619,2347.5,2347.3,0.42603]
[1728000525996,4.619,2347.5,2347.2,0.8094]
[1728000526191,4.619,2347.5,2347.4,0.42602]
[1728000526397,5.03471994,2347.5,2347.4,0.42602]
[1728000526606,5.03471994,2347.5,2347.2,0.8094]
[1728000526803,0.41571547,2347.4,2347.3,0.42603]
[1728000527208,4.619,2347.5,2347.3,0.42603]
[1728000527505,0.41567951,2347.4,2347.2,0.3938]
[1728000527703,0.8116,2347.7,2347.5,0.42598]
[1728000527911,0.41564789,2347.6,2347.5,0.426]
[1728000528202,3.32,2347.8,2347.5,3.2078]
[1728000528396,1.08075989,2347.7,2347.6,0.42598]
[1728000529018,0.41567688,2347.7,2347.6,0.42598]
[1728000529500,4.66238362,2348.1,2347.6,0.4241]
[1728000529501,2.0957,2348.1,2347.6,0.4241]
[1728000529699,1.08095913,2348.0,2347.7,0.4151]
[1728000529909,2.0957,2348.1,2347.9,0.42593]
[1728000530095,1.0810272,2348.0,2347.7,0.4151]
[1728000530405,2.0957,2348.1,2347.9,0.42593]
[1728000530605,1.08108718,2348.0,2347.9,0.42593]
[1728000531001,1.08108651,2348.0,2347.9,0.42593]
[1728000532310,4.66743978,2348.0,2347.5,3.2078]
[1728000532501,1.08108651,2347.9,2347.8,0.42595]
[1728000533602,1.08129516,2347.9,2347.8,0.42595]
[1728000537211,0.66541241,2347.9,2347.8,0.42595]
[1728000537519,1.08152624,2347.9,2347.8,0.42595]
[1728000538415,1.08152624,2347.9,2347.5,3.2078]
[1728000538612,1.08152624,2347.8,2347.7,0.42596]
[1728000538908,1.08152624,2347.8,2347.6,0.42598]
[1728000539107,3.32,2348.0,2347.8,0.42595]
[1728000539300,1.08209648,2347.9,2347.8,0.42595]
[1728000540217,1.08209648,2347.9,2347.7,0.42596]
[1728000540218,4.55625148,2347.9,2347.7,0.42596]
[1728000540414,1.08209648,2347.8,2347.5,3.63379]
[1728000540708,1.34847241,2347.7,2347.3,0.8544]
[1728000540911,3.74596,2347.8,2347.3,0.8544]
[1728000540912,1.08209648,2347.6,2347.3,0.8544]
[1728000541101,1.08209648,2347.5,2347.4,0.42602]
[1728000541510,1.08209648,2347.5,2347.3,0.8544]
[1728000541717,0.41619095,2347.4,2347.3,1.28043]
[1728000541908,0.41619095,2347.4,2347.3,0.8544]
[1728000542115,0.41619095,2347.4,2347.3,1.28044]
[1728000542318,0.42597,2347.7,2347.3,0.8544]
[1728000542615,0.93220302,2347.6,2347.5,0.426]
[1728000542807,0.93220302,2347.6,2347.5,3.746]
[1728000542808,0.41614052,2347.6,2347.5,3.746]
[1728000543006,0.41614052,2347.6,2347.5,11.2138]
[1728000543203,1.302,2348.0,2347.5,11.2138]
[1728000543409,1.302,2348.0,2347.6,0.4269]
[1728000543410,1.08221136,2347.9,2347.6,0.4269]
[1728000543604,1.302,2348.0,2347.7,0.42596]
[1728000543605,1.08221136,2347.8,2347.7,0.42596]
[1728000543805,4.78261218,2348.1,2347.8,0.42595]
[1728000544012,2.65057489,2348.0,2347.9,0.42593]
[1728000544313,2.65057489,2348.0,2347.6,0.4269]
[1728000544514,1.0823264,2347.9,2347.8,0.42595]
[1728000544813,0.66161218,2348.1,2347.6,0.4269]
[1728000544814,1.0823264,2348.0,2347.6,1.49182]
[1728000545512,1.96361218,2348.5,2347.9,3.32]
[1728000545712,1.96361218,2348.5,2347.8,3.2078]
[1728000545713,1.302,2348.5,2348.4,0.42584]
[1728000545918,2.23470909,2348.5,2348.4,0.42584]
[1728000546221,1.302,2348.5,2348.4,0.42584]
[1728000546717,1.96843822,2348.5,2348.4,0.42584]
[1728000546925,1.96843822,2348.5,2348.3,0.42585]
[1728000547109,0.66643822,2348.4,2348.3,0.42585]
[1728000547513,8.24483822,2348.4,2348.0,0.4254]
[1728000547715,3.32,2348.2,2348.0,0.8513]
[1728000547914,0.66643822,2348.1,2348.0,0.8513]
[1728000548215,0.93276053,2348.1,2348.0,0.8513]
[1728000549012,3.32,2348.2,2347.8,4.148]
[1728000549315,1.61773691,2348.1,2347.9,0.42592]
[1728000549518,1.61773691,2348.1,2348.0,0.42591]
[1728000549716,6.58876373,2348.1,2347.4,1.1096336]
[1728000549913,3.98214967,2347.8,2347.2,0.4139]
[1728000550111,0.95556373,2347.7,2347.6,0.42597]
[1728000550615,1.6177134,2347.7,2347.5,0.42599]
[1728000550820,0.95556373,2347.6,2347.2,0.4139]
[1728000551014,0.95561801,2347.5,2347.3,0.42603]
[1728000551321,0.68923917,2347.4,2347.3,0.42604]
[1728000552613,0.68923917,2347.4,2347.2,0.83995]
[1728000552823,0.68923917,2347.3,2347.2,0.83995]
[1728000554313,0.68923917,2347.3,2347.2,0.4139]
[1728000554512,0.95565122,2347.3,2347.2,0.4139]
[1728000555319,0.95523099,2347.3,2347.2,0.83995]
[1728000555717,7.18969206,2347.4,2346.7,3.2078]
[1728000555920,3.32,2346.9,2346.7,0.3929]
[1728000556611,0.68856892,2346.8,2346.5,3.2078]
[1728000556811,3.32,2346.9,2346.8,0.42613]
[1728000557008,0.68855222,2346.9,2346.8,0.42613]
[1728000557615,1.11881762,2346.9,2346.8,0.42613]
[1728000559527,1.11820111,2346.9,2346.8,0.42613]
[1728000560225,0.4302654,2346.9,2346.8,0.42613]
[1728000562126,3.7502654,2346.9,2346.6,0.4078]
[1728000562425,3.32,2346.9,2346.8,0.42613]
[1728000562630,3.74949865,2346.9,2346.8,0.42613]
[1728000564921,3.32,2346.9,2346.8,0.42613]
[1728000565123,3.74967724,2346.9,2346.8,0.42613]
[1728000565526,3.74972508,2346.9,2346.8,0.42613]
[1728000565835,3.74972508,2346.9,2346.7,0.42614]
[1728000566037,0.42972508,2346.8,2346.7,0.42614]
[1728000568243,3.32,2346.9,2346.6,0.4078]
[1728000568438,3.32,2346.9,2346.8,0.42613]
[1728000568639,4.43785781,2346.9,2346.8,0.42613]
[1728000571548,4.43808406,2346.9,2346.8,0.42613]
[1728000572445,4.43808406,2346.9,2346.7,0.42614]
[1728000572638,6.95783233,2346.8,2346.2,7.3558]
[1728000572841,3.32,2346.4,2346.2,3.2078]
[1728000573040,3.32,2346.4,2346.3,0.4262]
[1728000573237,3.74992684,2346.4,2346.3,0.4262]
[1728000573848,9.38552684,2346.4,2345.8,3.2078]
[1728000574041,3.32,2345.9,2345.8,4.06261]
[1728000574242,5.2e-06,2345.9,2345.8,0.42631]
[1728000574548,3.32,2346.6,2346.5,0.42618]
[1728000575052,3.32,2346.8,2346.0,6.5278]
[1728000575256,0.6797461,2346.7,2346.6,0.42616]
[1728000575551,3.6178,2347.1,2346.9,0.42611]
[1728000576142,8.26050481,2347.0,2346.7,0.42613]
[1728000576350,4.04388,2347.1,2347.0,0.42609]
[1728000576351,4.9918,2347.1,2347.0,0.42609]
[1728000576648,5.67160003,2347.1,2347.0,0.42609]
[1728000577049,2.46380003,2347.1,2347.0,0.42609]
[1728000577653,1.08980003,2347.1,2347.0,0.42609]
[1728000577851,0.41,2347.1,2347.0,0.42609]
[1728000578744,0.41,2347.1,2346.8,3.2078]
[1728000578947,0.41,2347.1,2346.9,0.42611]
[1728000579146,0.41,2347.1,2346.8,3.2078]
[1728000579343,0.41,2347.1,2346.9,0.4261]
[1728000579545,3.32,2347.0,2346.9,0.4261]
[1728000580450,4.00017548,2347.0,2346.9,0.4261]
[1728000580651,3.32,2347.0,2346.9,0.4261]
[1728000582347,0.6802899,2347.0,2346.9,0.4261]
[1728000582548,0.41,2347.1,2346.9,0.4261]
[1728000582944,0.68028954,2347.0,2346.7,0.3893]
[1728000583149,0.41,2347.1,2346.9,0.42611]
[1728000583350,0.68035106,2347.0,2346.9,0.42611]
[1728000584053,7.59985203,2347.4,2347.2,0.42604]
[1728000584251,7.59985203,2347.4,2347.0,0.8257]
[1728000584252,3.2078,2347.4,2347.0,0.8257]
[1728000584451,3.2078,2347.4,2347.3,0.42604]
[1728000584750,3.88837343,2347.4,2347.3,0.42604]
[1728000584950,3.2078,2347.4,2347.3,0.42604]
[1728000586353,0.42548139,2347.4,2347.3,4.68604]
[1728000586554,1.07108731,2348.1,2348.0,0.42591]
[1728000586752,1.09060591,2348.1,2348.0,0.42591]
[1728000586951,1.09060591,2348.1,2347.9,0.42592]
[1728000587252,0.4097,2348.1,2347.9,0.42592]
[1728000587449,0.4097,2348.1,2347.6,3.6341]